[Event "Titled Tuesday Blitz November 01 Late 2022"]
[White "ChessBrah"]
[Black "Plat, Vojtech"]
[BlackFideId "325740"]
[WhiteElo "2895"]
[BlackElo "2514"]
[Result "0-1"]
[Round "09"]
[TimeControl "180+1"]
[Date "2022.11.01"]
[WhiteClock "0:00:03"]
[BlackClock "0:00:41"]

1. c4 {[%clk 0:03:00]}  d6 {[%clk 0:02:42]} 2. Nf3 {[%clk 0:02:54]}  e5 {[%clk 0:02:41]} 3. Nc3 {[%clk 0:02:54]}  Nd7 {[%clk 0:02:42]} 4. d4 {[%clk 0:02:53]}  Ngf6 {[%clk 0:02:42]} 5. e4 {[%clk 0:02:53]}  Be7 {[%clk 0:02:41]} 6. Be2 {[%clk 0:02:49]}  O-O {[%clk 0:02:41]} 7. O-O {[%clk 0:02:50]}  c6 {[%clk 0:02:41]} 8. Re1 {[%clk 0:02:49]}  a5 {[%clk 0:02:40]} 9. Bf1 {[%clk 0:02:48]}  Re8 {[%clk 0:02:38]} 10. h3 {[%clk 0:02:42]}  exd4 {[%clk 0:02:38]} 11. Nxd4 {[%clk 0:02:41]}  Nc5 {[%clk 0:02:39]} 12. Bf4 {[%clk 0:02:36]}  Bf8 {[%clk 0:02:39]} 13. Qc2 {[%clk 0:02:36]}  Nfd7 {[%clk 0:02:38]} 14. Rad1 {[%clk 0:02:24]}  Qf6 {[%clk 0:02:37]} 15. Bg3 {[%clk 0:02:02]}  Ne5 {[%clk 0:02:37]} 16. Kh1 {[%clk 0:01:55]}  Qg6 {[%clk 0:02:29]} 17. b3 {[%clk 0:01:46]}  Bd7 {[%clk 0:02:14]} 18. Kh2 {[%clk 0:01:44]}  Qh6 {[%clk 0:02:12]} 19. Nf5 {[%clk 0:01:40]}  Bxf5 {[%clk 0:02:10]} 20. exf5 {[%clk 0:01:41]}  Rad8 {[%clk 0:02:03]} 21. Kg1 {[%clk 0:01:36]}  Qg5 {[%clk 0:01:58]} 22. a3 {[%clk 0:01:35]}  h5 {[%clk 0:01:56]} 23. b4 {[%clk 0:01:33]}  axb4 {[%clk 0:01:56]} 24. axb4 {[%clk 0:01:34]}  Ncd7 {[%clk 0:01:55]} 25. Ne4 {[%clk 0:01:21]}  Qxf5 {[%clk 0:01:54]} 26. Bh4 {[%clk 0:01:22]}  Qg6 {[%clk 0:01:45]} 27. Kh1 {[%clk 0:01:17]}  Nf6 {[%clk 0:01:24]} 28. Bxf6 {[%clk 0:01:08]}  gxf6 {[%clk 0:01:24]} 29. f4 {[%clk 0:01:09]}  f5 {[%clk 0:01:19]} 30. Ng5 {[%clk 0:00:53]}  f6 {[%clk 0:01:18]} 31. fxe5 {[%clk 0:00:37]}  fxg5 {[%clk 0:01:17]} 32. Bd3 {[%clk 0:00:34]}  Rxe5 {[%clk 0:01:17]} 33. Bxf5 {[%clk 0:00:35]}  Qxf5 {[%clk 0:01:15]} 34. Qb3 {[%clk 0:00:23]}  Rxe1+ {[%clk 0:01:11]} 35. Rxe1 {[%clk 0:00:22]}  d5 {[%clk 0:01:11]} 36. b5 {[%clk 0:00:19]}  dxc4 {[%clk 0:01:09]} 37. Qxc4+ {[%clk 0:00:19]}  Qd5 {[%clk 0:01:09]} 38. Qc2 {[%clk 0:00:17]}  cxb5 {[%clk 0:01:06]} 39. Qg6+ {[%clk 0:00:16]}  Bg7 {[%clk 0:01:04]} 40. Qxh5 {[%clk 0:00:05]}  b4 {[%clk 0:01:04]} 41. h4 {[%clk 0:00:03]}  b3 {[%clk 0:00:41]} 0-1


[Site "https://www.chess.com"]

[Event "Titled Tuesday Blitz November 01 Late 2022"]
[White "Clawitter, Craig"]
[Black "Ismayil, Malak"]
[WhiteFideId "2023105"]
[BlackFideId "13412604"]
[WhiteElo "2314"]
[BlackElo "1879"]
[Result "0-1"]
[Round "09"]
[TimeControl "180+1"]
[Date "2022.11.02"]
[WhiteClock "0:00:01"]
[BlackClock "0:00:10"]

1. e4 {[%clk 0:03:00]}  e5 {[%clk 0:02:58]} 2. Nf3 {[%clk 0:02:58]}  Nc6 {[%clk 0:02:58]} 3. Bb5 {[%clk 0:02:59]}  a6 {[%clk 0:02:56]} 4. Ba4 {[%clk 0:02:58]}  Nf6 {[%clk 0:02:54]} 5. O-O {[%clk 0:02:56]}  b5 {[%clk 0:02:54]} 6. Bb3 {[%clk 0:02:56]}  Be7 {[%clk 0:02:53]} 7. d3 {[%clk 0:02:53]}  O-O {[%clk 0:02:53]} 8. Nc3 {[%clk 0:02:52]}  d6 {[%clk 0:02:53]} 9. a4 {[%clk 0:02:49]}  b4 {[%clk 0:02:52]} 10. Nd5 {[%clk 0:02:47]}  Bg4 {[%clk 0:02:38]} 11. Be3 {[%clk 0:02:39]}  Qd7 {[%clk 0:02:26]} 12. a5 {[%clk 0:02:34]}  Nxd5 {[%clk 0:02:15]} 13. Bxd5 {[%clk 0:02:34]}  Rab8 {[%clk 0:02:14]} 14. h3 {[%clk 0:02:22]}  Be6 {[%clk 0:02:12]} 15. c4 {[%clk 0:02:12]}  bxc3 {[%clk 0:02:02]} 16. bxc3 {[%clk 0:02:12]}  Bxd5 {[%clk 0:02:02]} 17. exd5 {[%clk 0:02:11]}  Nd8 {[%clk 0:02:02]} 18. Nd2 {[%clk 0:02:01]}  c6 {[%clk 0:01:53]} 19. dxc6 {[%clk 0:01:51]}  Nxc6 {[%clk 0:01:54]} 20. Nc4 {[%clk 0:01:51]}  d5 {[%clk 0:01:49]} 21. Nb6 {[%clk 0:01:48]}  Qe6 {[%clk 0:01:46]} 22. f4 {[%clk 0:01:29]}  f6 {[%clk 0:01:36]} 23. Qf3 {[%clk 0:01:02]}  e4 {[%clk 0:01:32]} 24. dxe4 {[%clk 0:00:58]}  dxe4 {[%clk 0:01:33]} 25. f5 {[%clk 0:00:52]}  exf3 {[%clk 0:01:05]} 26. fxe6 {[%clk 0:00:52]}  fxg2 {[%clk 0:01:05]} 27. Kxg2 {[%clk 0:00:41]}  Rfe8 {[%clk 0:00:49]} 28. Rfe1 {[%clk 0:00:34]}  Bd6 {[%clk 0:00:44]} 29. Rad1 {[%clk 0:00:29]}  Be5 {[%clk 0:00:42]} 30. Bd4 {[%clk 0:00:27]}  Rxe6 {[%clk 0:00:37]} 31. Nd7 {[%clk 0:00:20]}  Rbe8 {[%clk 0:00:35]} 32. Bxe5 {[%clk 0:00:18]}  Nxe5 {[%clk 0:00:36]} 33. Nxe5 {[%clk 0:00:17]}  Rxe5 {[%clk 0:00:36]} 34. Rxe5 {[%clk 0:00:16]}  Rxe5 {[%clk 0:00:37]} 35. Rd8+ {[%clk 0:00:14]}  Kf7 {[%clk 0:00:37]} 36. Rd7+ {[%clk 0:00:15]}  Kg6 {[%clk 0:00:36]} 37. Rd4 {[%clk 0:00:08]}  Rxa5 {[%clk 0:00:37]} 38. Rg4+ {[%clk 0:00:08]}  Kf7 {[%clk 0:00:37]} 39. Rb4 {[%clk 0:00:08]}  Ra2+ {[%clk 0:00:35]} 40. Kg3 {[%clk 0:00:08]}  Ra3 {[%clk 0:00:35]} 41. Rb7+ {[%clk 0:00:09]}  Kg6 {[%clk 0:00:35]} 42. Rc7 {[%clk 0:00:09]}  a5 {[%clk 0:00:35]} 43. Kf4 {[%clk 0:00:09]}  Ra4+ {[%clk 0:00:33]} 44. Ke3 {[%clk 0:00:08]}  Rh4 {[%clk 0:00:33]} 45. c4 {[%clk 0:00:08]}  Rxh3+ {[%clk 0:00:33]} 46. Kd4 {[%clk 0:00:08]}  a4 {[%clk 0:00:30]} 47. c5 {[%clk 0:00:08]}  Rh1 {[%clk 0:00:25]} 48. c6 {[%clk 0:00:08]}  Rc1 {[%clk 0:00:24]} 49. Kd5 {[%clk 0:00:08]}  a3 {[%clk 0:00:23]} 50. Ra7 {[%clk 0:00:08]}  Rc3 {[%clk 0:00:22]} 51. Kd6 {[%clk 0:00:07]}  a2 {[%clk 0:00:21]} 52. Rxa2 {[%clk 0:00:05]}  h5 {[%clk 0:00:21]} 53. c7 {[%clk 0:00:04]}  h4 {[%clk 0:00:21]} 54. Ra3 {[%clk 0:00:01]}  Rxa3 {[%clk 0:00:09]} 55. c8=Q {[%clk 0:00:01]}  Rd3+ {[%clk 0:00:10]} 56. Ke7 {[%clk 0:00:01]}  Re3+ {[%clk 0:00:10]} 0-1


[Site "https://www.chess.com"]

[Event "Titled Tuesday Blitz November 01 Late 2022"]
[White "Curtis, John"]
[Black "Soucek, Petr"]
[WhiteFideId "3200256"]
[BlackFideId "23715170"]
[WhiteElo "2203"]
[BlackElo "2150"]
[Result "1-0"]
[Round "09"]
[TimeControl "180+1"]
[Date "2022.11.02"]
[WhiteClock "0:00:17"]
[BlackClock "0:00:13"]

1. e4 {[%clk 0:03:00]}  e5 {[%clk 0:02:59]} 2. f4 {[%clk 0:03:00]}  exf4 {[%clk 0:02:59]} 3. Nf3 {[%clk 0:03:00]}  d6 {[%clk 0:02:58]} 4. d4 {[%clk 0:02:59]}  g5 {[%clk 0:02:42]} 5. h4 {[%clk 0:02:49]}  g4 {[%clk 0:02:42]} 6. Ng1 {[%clk 0:02:49]}  Nf6 {[%clk 0:02:25]} 7. Nc3 {[%clk 0:02:46]}  Nh5 {[%clk 0:02:25]} 8. Nge2 {[%clk 0:02:40]}  Qf6 {[%clk 0:02:10]} 9. Nd5 {[%clk 0:02:38]}  Qd8 {[%clk 0:02:02]} 10. Ndxf4 {[%clk 0:02:34]}  Nxf4 {[%clk 0:02:02]} 11. Bxf4 {[%clk 0:02:29]}  Nc6 {[%clk 0:02:02]} 12. c3 {[%clk 0:02:21]}  Bd7 {[%clk 0:01:58]} 13. Bg5 {[%clk 0:02:20]}  Be7 {[%clk 0:01:58]} 14. Bxe7 {[%clk 0:02:19]}  Qxe7 {[%clk 0:01:59]} 15. Ng3 {[%clk 0:02:16]}  O-O-O {[%clk 0:01:56]} 16. Bd3 {[%clk 0:02:07]}  f5 {[%clk 0:01:57]} 17. Qe2 {[%clk 0:01:29]}  f4 {[%clk 0:01:33]} 18. Nf1 {[%clk 0:01:22]}  Rde8 {[%clk 0:01:18]} 19. O-O-O {[%clk 0:01:17]}  Rhf8 {[%clk 0:01:17]} 20. Nd2 {[%clk 0:01:16]}  h5 {[%clk 0:01:12]} 21. Kb1 {[%clk 0:01:12]}  d5 {[%clk 0:00:58]} 22. e5 {[%clk 0:01:05]}  Qf7 {[%clk 0:00:50]} 23. Rdf1 {[%clk 0:00:59]}  Bf5 {[%clk 0:00:49]} 24. Ka1 {[%clk 0:00:51]}  Qh7 {[%clk 0:00:40]} 25. Bxf5+ {[%clk 0:00:49]}  Rxf5 {[%clk 0:00:40]} 26. Nb3 {[%clk 0:00:44]}  Nxe5 {[%clk 0:00:21]} 27. dxe5 {[%clk 0:00:39]}  Rfxe5 {[%clk 0:00:22]} 28. Qd2 {[%clk 0:00:32]}  f3 {[%clk 0:00:14]} 29. gxf3 {[%clk 0:00:31]}  g3 {[%clk 0:00:14]} 30. Rhg1 {[%clk 0:00:23]}  Re2 {[%clk 0:00:14]} 31. Qxd5 {[%clk 0:00:20]}  Qc2 {[%clk 0:00:13]} 32. Rb1 {[%clk 0:00:20]}  g2 {[%clk 0:00:13]} 33. Nc5 {[%clk 0:00:17]} 1-0


[Site "https://www.chess.com"]

[Event "Titled Tuesday Blitz November 01 Late 2022"]
[White "D`Arruda, Ricardo D."]
[Black "Luxama, Jacques Muller"]
[WhiteFideId "100692"]
[BlackFideId "11900113"]
[WhiteElo "2471"]
[BlackElo "1931"]
[Result "1-0"]
[Round "09"]
[TimeControl "180+1"]
[Date "2022.11.02"]
[WhiteClock "0:00:16"]
[BlackClock "0:00:08"]

1. d4 {[%clk 0:03:00]}  Nf6 {[%clk 0:02:57]} 2. Nf3 {[%clk 0:02:59]}  g6 {[%clk 0:02:56]} 3. Nc3 {[%clk 0:02:59]}  Bg7 {[%clk 0:02:55]} 4. e4 {[%clk 0:02:58]}  d6 {[%clk 0:02:55]} 5. Bg5 {[%clk 0:02:58]}  Bg4 {[%clk 0:02:53]} 6. Qd2 {[%clk 0:02:55]}  Bxf3 {[%clk 0:02:51]} 7. gxf3 {[%clk 0:02:56]}  Nbd7 {[%clk 0:02:51]} 8. O-O-O {[%clk 0:02:54]}  c6 {[%clk 0:02:44]} 9. f4 {[%clk 0:02:54]}  h6 {[%clk 0:02:39]} 10. Bh4 {[%clk 0:02:52]}  Qa5 {[%clk 0:02:37]} 11. Bd3 {[%clk 0:02:10]}  g5 {[%clk 0:02:36]} 12. fxg5 {[%clk 0:02:08]}  hxg5 {[%clk 0:02:37]} 13. Bxg5 {[%clk 0:01:57]}  Qxg5 {[%clk 0:02:30]} 14. Qxg5 {[%clk 0:01:58]}  Bh6 {[%clk 0:02:30]} 15. h4 {[%clk 0:01:55]}  O-O-O {[%clk 0:02:26]} 16. f4 {[%clk 0:01:54]}  Bxg5 {[%clk 0:02:24]} 17. hxg5 {[%clk 0:01:53]}  Ng4 {[%clk 0:02:23]} 18. Be2 {[%clk 0:01:39]}  Nf2 {[%clk 0:02:18]} 19. Rxh8 {[%clk 0:01:39]}  Rxh8 {[%clk 0:02:17]} 20. Rf1 {[%clk 0:01:38]}  Nh1 {[%clk 0:02:04]} 21. Bf3 {[%clk 0:01:33]}  Ng3 {[%clk 0:01:54]} 22. Rg1 {[%clk 0:01:31]}  Nxe4 {[%clk 0:01:19]} 23. Bxe4 {[%clk 0:01:25]}  Rh4 {[%clk 0:01:19]} 24. Ne2 {[%clk 0:01:20]}  e5 {[%clk 0:01:18]} 25. dxe5 {[%clk 0:01:16]}  dxe5 {[%clk 0:01:17]} 26. Bf5 {[%clk 0:01:14]}  Kc7 {[%clk 0:01:12]} 27. Rd1 {[%clk 0:01:05]}  Nc5 {[%clk 0:01:09]} 28. fxe5 {[%clk 0:01:04]}  Rh5 {[%clk 0:01:08]} 29. Rg1 {[%clk 0:01:02]}  Rh2 {[%clk 0:01:04]} 30. Nd4 {[%clk 0:00:57]}  Rh4 {[%clk 0:01:01]} 31. c3 {[%clk 0:00:56]}  Rh2 {[%clk 0:00:45]} 32. Bc2 {[%clk 0:00:29]}  Nd7 {[%clk 0:00:39]} 33. Re1 {[%clk 0:00:25]}  Rg2 {[%clk 0:00:35]} 34. e6 {[%clk 0:00:25]}  fxe6 {[%clk 0:00:34]} 35. Nxe6+ {[%clk 0:00:25]}  Kd6 {[%clk 0:00:33]} 36. g6 {[%clk 0:00:25]}  Ne5 {[%clk 0:00:33]} 37. Nd4 {[%clk 0:00:23]}  Nxg6 {[%clk 0:00:32]} 38. Bxg6 {[%clk 0:00:23]}  Rxg6 {[%clk 0:00:30]} 39. Nf5+ {[%clk 0:00:22]}  Kc5 {[%clk 0:00:29]} 40. Re7 {[%clk 0:00:21]}  Rf6 {[%clk 0:00:25]} 41. Nd4 {[%clk 0:00:20]}  Kb6 {[%clk 0:00:22]} 42. Kc2 {[%clk 0:00:20]}  Rf2+ {[%clk 0:00:19]} 43. Kb3 {[%clk 0:00:20]}  a5 {[%clk 0:00:19]} 44. a4 {[%clk 0:00:20]}  Ka6 {[%clk 0:00:18]} 45. Ne6 {[%clk 0:00:20]}  Kb6 {[%clk 0:00:18]} 46. Nd8 {[%clk 0:00:19]}  Ka6 {[%clk 0:00:15]} 47. Rxb7 {[%clk 0:00:19]}  Rd2 {[%clk 0:00:13]} 48. Rb8 {[%clk 0:00:19]}  Ka7 {[%clk 0:00:13]} 49. Nxc6+ {[%clk 0:00:19]}  Ka6 {[%clk 0:00:12]} 50. Rd8 {[%clk 0:00:18]}  Re2 {[%clk 0:00:11]} 51. c4 {[%clk 0:00:18]}  Kb6 {[%clk 0:00:11]} 52. Nd4 {[%clk 0:00:17]}  Re3+ {[%clk 0:00:10]} 53. Kc2 {[%clk 0:00:18]}  Rg3 {[%clk 0:00:10]} 54. Rd5 {[%clk 0:00:18]}  Rg2+ {[%clk 0:00:09]} 55. Kc3 {[%clk 0:00:17]}  Rg3+ {[%clk 0:00:09]} 56. Kd2 {[%clk 0:00:17]}  Rg2+ {[%clk 0:00:10]} 57. Ne2 {[%clk 0:00:17]}  Rh2 {[%clk 0:00:09]} 58. Rb5+ {[%clk 0:00:18]}  Ka6 {[%clk 0:00:09]} 59. c5 {[%clk 0:00:18]}  Ka7 {[%clk 0:00:08]} 60. Kd3 {[%clk 0:00:18]}  Ka6 {[%clk 0:00:08]} 61. Nd4 {[%clk 0:00:18]}  Rh3+ {[%clk 0:00:09]} 62. Kc4 {[%clk 0:00:18]}  Rb3 {[%clk 0:00:08]} 63. Rxb3 {[%clk 0:00:16]}  Ka7 {[%clk 0:00:07]} 64. c6 {[%clk 0:00:16]}  Ka6 {[%clk 0:00:08]} 65. c7 {[%clk 0:00:16]}  Ka7 {[%clk 0:00:09]} 66. Nc6+ {[%clk 0:00:15]}  Ka6 {[%clk 0:00:08]} 67. c8=Q# {[%clk 0:00:16]} 1-0


[Site "https://www.chess.com"]

[Event "Titled Tuesday Blitz November 01 Late 2022"]
[White "Dehtiarov, Roman"]
[Black "Galchenko, Matvey"]
[WhiteFideId "14186640"]
[BlackFideId "24175480"]
[WhiteElo "2200"]
[BlackElo "2423"]
[Result "0-1"]
[Round "09"]
[TimeControl "180+1"]
[Date "2022.11.01"]
[WhiteClock "0:00:01"]
[BlackClock "0:00:07"]

1. e4 {[%clk 0:03:00]}  e6 {[%clk 0:02:57]} 2. d3 {[%clk 0:02:59]}  d5 {[%clk 0:02:57]} 3. Nd2 {[%clk 0:02:59]}  Nf6 {[%clk 0:02:58]} 4. g3 {[%clk 0:02:58]}  c5 {[%clk 0:02:58]} 5. Bg2 {[%clk 0:02:58]}  Nc6 {[%clk 0:02:59]} 6. Ne2 {[%clk 0:02:58]}  g6 {[%clk 0:02:48]} 7. O-O {[%clk 0:02:58]}  Bg7 {[%clk 0:02:49]} 8. f4 {[%clk 0:02:58]}  O-O {[%clk 0:02:48]} 9. e5 {[%clk 0:02:58]}  Nd7 {[%clk 0:02:47]} 10. Nf3 {[%clk 0:02:58]}  f6 {[%clk 0:02:45]} 11. exf6 {[%clk 0:02:57]}  Qxf6 {[%clk 0:02:45]} 12. c3 {[%clk 0:02:53]}  b6 {[%clk 0:02:36]} 13. d4 {[%clk 0:02:51]}  Ba6 {[%clk 0:02:34]} 14. Be3 {[%clk 0:02:51]}  Qe7 {[%clk 0:02:23]} 15. Re1 {[%clk 0:02:48]}  Nf6 {[%clk 0:02:21]} 16. Qa4 {[%clk 0:02:31]}  Bb7 {[%clk 0:02:17]} 17. h3 {[%clk 0:02:16]}  Ne4 {[%clk 0:02:16]} 18. Ne5 {[%clk 0:02:08]}  cxd4 {[%clk 0:02:11]} 19. Nxc6 {[%clk 0:01:41]}  Bxc6 {[%clk 0:02:11]} 20. Qxc6 {[%clk 0:01:42]}  dxe3 {[%clk 0:02:11]} 21. Bxe4 {[%clk 0:01:42]}  Rac8 {[%clk 0:02:05]} 22. Qb5 {[%clk 0:01:32]}  dxe4 {[%clk 0:02:05]} 23. Qa4 {[%clk 0:01:13]}  Qb7 {[%clk 0:01:43]} 24. Nd4 {[%clk 0:01:05]}  Qd5 {[%clk 0:01:30]} 25. Rxe3 {[%clk 0:01:00]}  Rc4 {[%clk 0:01:30]} 26. Qb3 {[%clk 0:00:53]}  Rxd4 {[%clk 0:01:23]} 27. cxd4 {[%clk 0:00:52]}  Bxd4 {[%clk 0:01:24]} 28. Kg2 {[%clk 0:00:44]}  Bxe3 {[%clk 0:01:24]} 29. Qxe3 {[%clk 0:00:45]}  e5 {[%clk 0:01:21]} 30. Re1 {[%clk 0:00:38]}  exf4 {[%clk 0:01:22]} 31. gxf4 {[%clk 0:00:39]}  Qxa2 {[%clk 0:01:17]} 32. Re2 {[%clk 0:00:32]}  Re8 {[%clk 0:01:17]} 33. f5 {[%clk 0:00:30]}  Qd5 {[%clk 0:00:53]} 34. fxg6 {[%clk 0:00:30]}  hxg6 {[%clk 0:00:54]} 35. Rd2 {[%clk 0:00:29]}  Qe5 {[%clk 0:00:50]} 36. Qb3+ {[%clk 0:00:17]}  Qe6 {[%clk 0:00:44]} 37. Qe3 {[%clk 0:00:16]}  Rf8 {[%clk 0:00:43]} 38. Re2 {[%clk 0:00:15]}  Rf3 {[%clk 0:00:43]} 39. Qh6 {[%clk 0:00:07]}  Rf8 {[%clk 0:00:16]} 40. Qe3 {[%clk 0:00:06]}  Rf3 {[%clk 0:00:10]} 41. Qh6 {[%clk 0:00:06]}  Qd6 {[%clk 0:00:11]} 42. Qg5 {[%clk 0:00:02]}  Rf5 {[%clk 0:00:11]} 43. Qg4 {[%clk 0:00:02]}  Re5 {[%clk 0:00:09]} 44. Qg3 {[%clk 0:00:01]}  e3 {[%clk 0:00:08]} 45. Qf3 {[%clk 0:00:01]}  Qe6 {[%clk 0:00:08]} 46. Qg3 {[%clk 0:00:01]}  Qf6 {[%clk 0:00:07]} 47. Qf3 {[%clk 0:00:01]}  Rg5+ {[%clk 0:00:07]} 0-1


[Site "https://www.chess.com"]

[Event "Titled Tuesday Blitz November 01 Late 2022"]
[White "Dimitrov, Atanas"]
[Black "Gunduz, Umut Erdem"]
[WhiteFideId "2901315"]
[BlackFideId "6381383"]
[WhiteElo "2746"]
[BlackElo "2182"]
[Result "0-1"]
[Round "09"]
[TimeControl "180+1"]
[Date "2022.11.02"]
[WhiteClock "0:00:10"]
[BlackClock "0:00:07"]

1. e4 {[%clk 0:03:00]}  e5 {[%clk 0:02:59]} 2. Nc3 {[%clk 0:02:55]}  Nf6 {[%clk 0:02:58]} 3. f4 {[%clk 0:02:54]}  d5 {[%clk 0:02:58]} 4. fxe5 {[%clk 0:02:55]}  Nxe4 {[%clk 0:02:58]} 5. Qf3 {[%clk 0:02:55]}  Nc6 {[%clk 0:02:57]} 6. Bb5 {[%clk 0:02:49]}  Nxc3 {[%clk 0:02:53]} 7. dxc3 {[%clk 0:02:49]}  Bc5 {[%clk 0:02:46]} 8. Ne2 {[%clk 0:02:46]}  O-O {[%clk 0:02:39]} 9. Bxc6 {[%clk 0:02:45]}  bxc6 {[%clk 0:02:39]} 10. Be3 {[%clk 0:02:45]}  Qe7 {[%clk 0:02:32]} 11. O-O-O {[%clk 0:02:34]}  Bxe3+ {[%clk 0:02:21]} 12. Qxe3 {[%clk 0:02:35]}  Re8 {[%clk 0:02:19]} 13. Nd4 {[%clk 0:02:34]}  Bd7 {[%clk 0:02:04]} 14. Rhe1 {[%clk 0:02:31]}  Rab8 {[%clk 0:01:28]} 15. h3 {[%clk 0:02:26]}  a5 {[%clk 0:01:21]} 16. g4 {[%clk 0:02:22]}  Qc5 {[%clk 0:01:04]} 17. Nb3 {[%clk 0:02:13]}  Qb6 {[%clk 0:00:59]} 18. Qxb6 {[%clk 0:01:51]}  cxb6 {[%clk 0:01:00]} 19. Nd4 {[%clk 0:01:45]}  g6 {[%clk 0:00:55]} 20. Rd2 {[%clk 0:01:44]}  Re7 {[%clk 0:00:55]} 21. Rde2 {[%clk 0:01:43]}  Rbe8 {[%clk 0:00:56]} 22. Kd2 {[%clk 0:01:44]}  c5 {[%clk 0:00:54]} 23. Nf3 {[%clk 0:01:41]}  Kg7 {[%clk 0:00:50]} 24. Re3 {[%clk 0:01:38]}  h6 {[%clk 0:00:40]} 25. a3 {[%clk 0:01:35]}  Rh8 {[%clk 0:00:38]} 26. Rh1 {[%clk 0:01:18]}  h5 {[%clk 0:00:35]} 27. g5 {[%clk 0:01:17]}  Bf5 {[%clk 0:00:34]} 28. h4 {[%clk 0:01:03]}  Rhe8 {[%clk 0:00:32]} 29. Rhe1 {[%clk 0:01:00]}  Be4 {[%clk 0:00:31]} 30. Ke2 {[%clk 0:00:54]}  Bxc2 {[%clk 0:00:28]} 31. Kf2 {[%clk 0:00:49]}  Bf5 {[%clk 0:00:27]} 32. Rd1 {[%clk 0:00:43]}  Rd7 {[%clk 0:00:24]} 33. b4 {[%clk 0:00:35]}  axb4 {[%clk 0:00:24]} 34. axb4 {[%clk 0:00:36]}  Ra8 {[%clk 0:00:24]} 35. Rd2 {[%clk 0:00:34]}  Ra1 {[%clk 0:00:21]} 36. Kg2 {[%clk 0:00:30]}  Ra3 {[%clk 0:00:16]} 37. Kf2 {[%clk 0:00:26]}  Be6 {[%clk 0:00:14]} 38. Rb2 {[%clk 0:00:20]}  Kf8 {[%clk 0:00:13]} 39. Ke2 {[%clk 0:00:19]}  Ke7 {[%clk 0:00:12]} 40. bxc5 {[%clk 0:00:20]}  bxc5 {[%clk 0:00:13]} 41. Rb5 {[%clk 0:00:15]}  d4 {[%clk 0:00:13]} 42. cxd4 {[%clk 0:00:14]}  Bc4+ {[%clk 0:00:13]} 43. Kf2 {[%clk 0:00:11]}  Rxe3 {[%clk 0:00:13]} 44. Rxc5 {[%clk 0:00:12]}  Rc3 {[%clk 0:00:13]} 45. Nd2 {[%clk 0:00:12]}  Rc2 {[%clk 0:00:13]} 46. Ke3 {[%clk 0:00:13]}  Rxd2 {[%clk 0:00:11]} 47. Kxd2 {[%clk 0:00:11]}  Bd5 {[%clk 0:00:08]} 48. Ke3 {[%clk 0:00:11]}  Ke6 {[%clk 0:00:09]} 49. Rb5 {[%clk 0:00:10]}  Kf5 {[%clk 0:00:09]} 50. Rb6 {[%clk 0:00:09]}  Kg4 {[%clk 0:00:08]} 51. Rd6 {[%clk 0:00:05]}  Rxd6 {[%clk 0:00:04]} 52. exd6 {[%clk 0:00:06]}  Bc6 {[%clk 0:00:04]} 53. d5 {[%clk 0:00:06]}  Bd7 {[%clk 0:00:04]} 54. Ke4 {[%clk 0:00:06]}  Kxh4 {[%clk 0:00:03]} 55. Kf4 {[%clk 0:00:07]}  Kh3 {[%clk 0:00:03]} 56. Ke5 {[%clk 0:00:07]}  h4 {[%clk 0:00:04]} 57. Kf6 {[%clk 0:00:07]}  Kg4 {[%clk 0:00:04]} 58. Ke7 {[%clk 0:00:07]}  Bf5 {[%clk 0:00:04]} 59. d7 {[%clk 0:00:07]}  Bxd7 {[%clk 0:00:05]} 60. Kxd7 {[%clk 0:00:08]}  h3 {[%clk 0:00:05]} 61. Ke7 {[%clk 0:00:08]}  h2 {[%clk 0:00:06]} 62. d6 {[%clk 0:00:09]}  h1=Q {[%clk 0:00:06]} 63. d7 {[%clk 0:00:10]}  Qd5 {[%clk 0:00:07]} 0-1


[Site "https://www.chess.com"]

[Event "Titled Tuesday Blitz November 01 Late 2022"]
[White "Djordjevic, Vuk"]
[Black "Gubajdullin, Alexei"]
[WhiteFideId "902098"]
[BlackFideId "4141202"]
[WhiteElo "2456"]
[BlackElo "2200"]
[Result "1-0"]
[Round "09"]
[TimeControl "180+1"]
[Date "2022.11.01"]
[WhiteClock "0:00:12"]
[BlackClock "0:00:02"]

1. d4 {[%clk 0:03:00]}  Nf6 {[%clk 0:02:59]} 2. Bg5 {[%clk 0:02:59]}  Ne4 {[%clk 0:02:55]} 3. Bf4 {[%clk 0:02:58]}  d5 {[%clk 0:02:54]} 4. f3 {[%clk 0:02:58]}  Nf6 {[%clk 0:02:52]} 5. Nc3 {[%clk 0:02:56]}  Nc6 {[%clk 0:02:50]} 6. Qd2 {[%clk 0:02:53]}  g6 {[%clk 0:02:49]} 7. g4 {[%clk 0:02:49]}  Bg7 {[%clk 0:02:48]} 8. h4 {[%clk 0:02:49]}  h5 {[%clk 0:02:45]} 9. g5 {[%clk 0:02:49]}  Nd7 {[%clk 0:02:44]} 10. Nxd5 {[%clk 0:02:46]}  e5 {[%clk 0:02:42]} 11. dxe5 {[%clk 0:02:44]}  Ncxe5 {[%clk 0:02:42]} 12. e4 {[%clk 0:02:37]}  c6 {[%clk 0:02:35]} 13. Ne3 {[%clk 0:01:47]}  O-O {[%clk 0:02:15]} 14. O-O-O {[%clk 0:01:46]}  Qb6 {[%clk 0:02:13]} 15. c3 {[%clk 0:01:45]}  Nc5 {[%clk 0:02:07]} 16. Bxe5 {[%clk 0:01:36]}  Bxe5 {[%clk 0:02:06]} 17. Nc4 {[%clk 0:01:37]}  Qc7 {[%clk 0:02:02]} 18. Nxe5 {[%clk 0:01:37]}  Qxe5 {[%clk 0:02:02]} 19. Qd6 {[%clk 0:01:25]}  Qxd6 {[%clk 0:01:56]} 20. Rxd6 {[%clk 0:01:26]}  Be6 {[%clk 0:01:57]} 21. b3 {[%clk 0:01:25]}  a5 {[%clk 0:01:55]} 22. Kc2 {[%clk 0:01:23]}  a4 {[%clk 0:01:45]} 23. b4 {[%clk 0:01:21]}  Bxa2 {[%clk 0:01:33]} 24. bxc5 {[%clk 0:01:21]}  a3 {[%clk 0:01:33]} 25. Rd1 {[%clk 0:01:04]}  Rfd8 {[%clk 0:01:29]} 26. Bd3 {[%clk 0:01:02]}  Ra5 {[%clk 0:01:00]} 27. Ra1 {[%clk 0:00:45]}  Bb3+ {[%clk 0:00:45]} 28. Kxb3 {[%clk 0:00:44]}  Rxd3 {[%clk 0:00:46]} 29. Ne2 {[%clk 0:00:45]}  Rb5+ {[%clk 0:00:40]} 30. Kc4 {[%clk 0:00:44]}  Rxf3 {[%clk 0:00:34]} 31. Rxa3 {[%clk 0:00:43]}  Re3 {[%clk 0:00:30]} 32. Ra2 {[%clk 0:00:34]}  b6 {[%clk 0:00:24]} 33. cxb6 {[%clk 0:00:31]}  Rxe4+ {[%clk 0:00:20]} 34. Nd4 {[%clk 0:00:31]}  Rxb6 {[%clk 0:00:19]} 35. Kc5 {[%clk 0:00:29]}  Rb8 {[%clk 0:00:17]} 36. Re2 {[%clk 0:00:29]}  Rg4 {[%clk 0:00:16]} 37. c4 {[%clk 0:00:22]}  Kg7 {[%clk 0:00:15]} 38. Re7 {[%clk 0:00:19]}  Kg8 {[%clk 0:00:13]} 39. Rf1 {[%clk 0:00:11]}  Rf8 {[%clk 0:00:11]} 40. Rh1 {[%clk 0:00:11]}  Rc8 {[%clk 0:00:09]} 41. Rd7 {[%clk 0:00:10]}  Re8 {[%clk 0:00:06]} 42. Nxc6 {[%clk 0:00:10]}  Ree4 {[%clk 0:00:06]} 43. Rd4 {[%clk 0:00:10]}  Kg7 {[%clk 0:00:04]} 44. Rxe4 {[%clk 0:00:10]}  Rxe4 {[%clk 0:00:04]} 45. Kd5 {[%clk 0:00:11]}  Rf4 {[%clk 0:00:03]} 46. c5 {[%clk 0:00:11]}  Kf8 {[%clk 0:00:03]} 47. Nd4 {[%clk 0:00:11]}  Ke8 {[%clk 0:00:03]} 48. c6 {[%clk 0:00:11]}  Kd8 {[%clk 0:00:03]} 49. Ke5 {[%clk 0:00:11]}  Rg4 {[%clk 0:00:02]} 50. Nb5 {[%clk 0:00:12]} 1-0


[Site "https://www.chess.com"]